bitfinex/quotes_SOLUSD_20251031
["timestamp","ask_amount","ask_price","bid_price","bid_amount"]
[1761918672664,5.41110649,187.85,187.8,0.98432314]
[1761918672835,0.1,187.91,187.8,0.98432314]
[1761918672836,20.592,187.88,187.83,0.28432314]
[1761918673041,5.41110649,187.87,187.83,10.07315083]
[1761918673344,5.41110649,187.89,187.84,0.7]
[1761918673774,5.41110649,187.89,187.85,18.63188713]
[1761918673980,5.41110649,187.88,187.85,5.32339632]
[1761918674272,5.41110649,187.87,187.83,5.60809727]
[1761918674470,5.41110649,187.86,187.83,5.32377413]
[1761918674664,5.41110649,187.85,187.83,5.32377413]
[1761918674974,5.41110649,187.84,187.81,5.3242953]
[1761918675180,5.41110649,187.83,187.81,5.3242953]
[1761918675476,5.41110649,187.83,187.8,6.02478402]
[1761918676482,21.192,187.91,187.81,0.7]
[1761918676655,5.41110649,187.84,187.81,0.7]
[1761918677178,5.41110649,187.83,187.8,5.32478402]
[1761918677681,5.41110649,187.82,187.8,6.02478402]
[1761918677865,5.41110649,187.83,187.8,6.02478402]
[1761918678059,5.82314827,187.86,187.76,52.32589634]
[1761918678266,5.41110649,187.79,187.76,52.32589634]
[1761918678566,5.41110649,187.82,187.77,6.39542963]
[1761918678763,5.41110649,187.81,187.77,0.98432314]
[1761918678963,0.5,187.87,187.77,0.98432314]
[1761918679174,5.41110649,187.82,187.78,0.7]
[1761918679353,5.41110649,187.81,187.78,0.7]
[1761918679864,5.41110649,187.81,187.79,5.32509718]
[1761918680380,5.41110649,187.83,187.8,0.7]
[1761918680680,20.592,187.88,187.8,47.98432314]
[1761918680872,0.1,187.91,187.82,0.28432314]
[1761918681073,5.41110649,187.88,187.84,0.28432314]
[1761918681276,5.41110649,187.9,187.85,6.11110649]
[1761918681579,0.1,187.91,187.87,0.28432314]
[1761918681782,5.51110649,187.91,187.89,5.32226302]
[1761918681951,0.1,187.91,187.89,5.32226302]
[1761918682277,5.41110649,187.9,187.87,5.32263688]
[1761918682486,5.41110649,187.88,187.86,5.32302791]
[1761918682695,5.41110649,187.87,187.86,5.32302791]
[1761918683283,5.41110649,187.88,187.86,5.98302791]
[1761918683458,5.41110649,187.88,187.87,0.66]
[1761918683821,0.1,187.91,187.86,13.30778239]
[1761918683956,0.1,187.91,187.86,13.96778239]
[1761918683957,5.41110649,187.9,187.86,13.96778239]
[1761918684158,0.1,187.91,187.87,0.94432314]
[1761918684376,0.1,187.91,187.87,6.35542963]
[1761918684573,0.1,187.91,187.88,0.66]
[1761918685289,5.51110649,187.91,187.88,0.66]
[1761918685495,5.51110649,187.91,187.87,0.28432314]
[1761918685670,5.51110649,187.91,187.88,0.66]
[1761918685869,5.51110649,187.91,187.89,5.32226302]
[1761918686076,5.41110649,187.9,187.88,5.32254043]
[1761918687391,0.1,187.91,187.88,5.98254043]
[1761918687612,0.1,187.91,187.89,0.94432314]
[1761918688006,0.1,187.91,187.9,6.26630291]
[1761918689085,0.1,187.91,187.9,5.60630291]
[1761918689291,5.51110649,187.91,187.88,5.32244265]
[1761918689610,0.1,187.91,187.89,0.97432314]
[1761918689979,0.1,187.91,187.9,6.29630291]
[1761918690689,0.1,187.91,187.87,5.32282961]
[1761918690889,5.41110649,187.88,187.79,0.69]
[1761918691093,0.5,187.9,187.79,0.69]
[1761918691094,5.41110649,187.83,187.79,0.69]
[1761918691501,5.41110649,187.81,187.76,0.69]
[1761918691698,26.00310649,187.88,187.76,0.69]
[1761918691699,5.41110649,187.79,187.76,0.69]
[1761918691887,5.41110649,187.79,187.76,6.01567485]
[1761918692081,5.41110649,187.79,187.76,5.32567485]
[1761918692521,5.41110649,187.79,187.76,18.64054489]
[1761918692811,5.41110649,187.81,187.77,0.69]
[1761918693017,5.41110649,187.83,187.77,6.10110649]
[1761918693194,5.41110649,187.83,187.78,0.14216157]
[1761918693515,20.592,187.86,187.76,18.64054489]
[1761918693516,5.41110649,187.81,187.76,18.64054489]
[1761918693714,5.41110649,187.8,187.77,0.28432314]
[1761918693915,5.41110649,187.8,187.76,18.64054489]
[1761918693916,5.41110649,187.8,187.76,19.33054489]
[1761918694121,5.41110649,187.8,187.76,6.01567485]
[1761918694424,5.41110649,187.79,187.76,5.32567485]
[1761918694622,5.41110649,187.78,187.75,5.32618429]
[1761918694800,5.41110649,187.77,187.75,5.32618429]
[1761918695005,5.41110649,187.76,187.72,0.69]
[1761918695515,5.41110649,187.77,187.73,18.64379693]
[1761918695715,5.41110649,187.84,187.77,0.14216157]
[1761918695897,5.41110649,187.83,187.78,0.14216157]
[1761918696105,5.41110649,187.82,187.79,5.32509718]
[1761918696304,5.41110649,187.81,187.78,5.32534498]
[1761918696805,5.41110649,187.8,187.78,5.32534498]
[1761918697026,5.41110649,187.79,187.78,5.32534498]
[1761918697238,5.41110649,187.8,187.78,5.32534498]
[1761918697742,25.91551145,187.85,187.79,0.69]
[1761918697743,5.41110649,187.83,187.79,0.69]
[1761918697903,5.41110649,187.84,187.79,0.69]
[1761918698105,20.592,187.85,187.78,24.04990338]
[1761918698106,5.41110649,187.83,187.8,5.32481363]
[1761918698408,5.41110649,187.81,187.74,0.28432314]
[1761918698631,5.41110649,187.76,187.73,0.14216157]
[1761918699503,5.41110649,187.76,187.74,5.32651539]
[1761918700111,5.41110649,187.75,187.72,5.32683323]
[1761918700317,5.41110649,187.73,187.72,5.32683323]
[1761918700515,5.41110649,187.76,187.72,5.32683323]
[1761918700733,5.41110649,187.76,187.73,0.69]
[1761918700912,5.41110649,187.76,187.72,5.32683323]
[1761918701112,0.5,187.79,187.72,5.32683323]
[1761918701113,5.41110649,187.74,187.72,5.32683323]
[1761918701328,5.41110649,187.75,187.72,5.32683323]
[1761918701522,5.41110649,187.76,187.71,5.32736668]
[1761918701707,5.41110649,187.77,187.72,13.31770722]
[1761918701909,20.592,187.8,187.72,13.31770722]
[1761918701910,20.592,187.8,187.73,0.28432314]
[1761918702122,5.41110649,187.8,187.74,5.41110649]
[1761918702329,5.41110649,187.79,187.73,6.38542963]
[1761918702636,0.5,187.82,187.72,13.31770722]
[1761918702839,5.41110649,187.77,187.72,13.31770722]
[1761918703209,5.41110649,187.77,187.72,14.00770722]
[1761918703641,5.41110649,187.77,187.72,19.3347901]
[1761918703844,5.41110649,187.76,187.72,19.3347901]
[1761918704139,5.41110649,187.74,187.72,5.32708288]
[1761918704346,20.592,187.8,187.72,18.6447901]
[1761918704521,20.592,187.8,187.73,0.97432314]
[1761918704845,5.41110649,187.79,187.73,0.69]
[1761918705016,5.41110649,187.78,187.73,0.69]
[1761918705650,5.41110649,187.78,187.71,0.28432314]
[1761918705862,5.41110649,187.77,187.72,5.32708288]
[1761918706059,5.41110649,187.74,187.72,5.32708288]
[1761918706225,0.5,187.76,187.69,5.32793435]
[1761918706226,5.41110649,187.73,187.69,5.32793435]
[1761918706426,5.41110649,187.73,187.67,5.41110649]
[1761918706427,5.41110649,187.71,187.67,18.64975754]
[1761918706640,5.41110649,187.7,187.66,0.69]
[1761918706843,5.41110649,187.69,187.64,13.32295545]
[1761918707037,5.41110649,187.7,187.64,13.32295545]
[1761918707241,5.41110649,187.7,187.64,19.42406194]
[1761918707439,5.41110649,187.7,187.64,14.01295545]
[1761918707724,5.41110649,187.7,187.64,19.34230953]
[1761918707931,5.41110649,187.69,187.65,0.14216157]
[1761918708146,5.41110649,187.69,187.64,19.34230953]
[1761918708556,5.41110649,187.69,187.65,0.97432314]
[1761918708749,5.41110649,187.7,187.65,0.97432314]
[1761918709049,5.41110649,187.69,187.65,0.97432314]
[1761918709549,5.41110649,187.71,187.66,0.69]
[1761918709756,5.41110649,187.71,187.67,5.32850215]
[1761918710047,5.41110649,187.7,187.67,5.32850215]
[1761918710644,5.41110649,187.68,187.65,5.61314819]
[1761918711148,0.5,187.7,187.65,5.61314819]
[1761918711461,5.41110649,187.68,187.65,5.61314819]
[1761918711849,5.41110649,187.68,187.65,5.32882505]
[1761918712257,5.41110649,187.68,187.64,0.28432314]
[1761918712461,5.41110649,187.65,187.62,5.52970359]
[1761918712776,5.41110649,187.64,187.62,5.52981115]
[1761918712945,5.41110649,187.65,187.62,5.52981115]
[1761918713471,0.5,187.67,187.63,0.97432314]
[1761918713472,5.41110649,187.67,187.63,0.97432314]
[1761918713654,26.00310649,187.68,187.65,5.32907007]
[1761918714047,20.592,187.68,187.65,5.32907007]
[1761918714254,5.41110649,187.69,187.65,5.32907007]
[1761918714853,5.41110649,187.69,187.65,18.65174526]
[1761918715054,115.41395349,187.78,187.65,19.34174526]
[1761918715055,5.32680289,187.73,187.65,19.34174526]
[1761918715264,5.41110649,187.69,187.65,19.34174526]
[1761918715475,5.41110649,187.71,187.66,0.28432314]
[1761918715777,26.00310649,187.7,187.67,5.32850215]
[1761918716079,20.592,187.7,187.67,5.32850215]
[1761918716252,20.592,187.7,187.67,6.01850215]
[1761918716449,5.41110649,187.75,187.68,6.38542963]
[1761918716771,5.41110649,187.73,187.68,0.28432314]
[1761918716973,5.41110649,187.73,187.68,0.97432314]
[1761918717479,5.41110649,187.72,187.68,0.28432314]
[1761918717651,5.41110649,187.72,187.69,5.32793435]
[1761918717853,5.41110649,187.73,187.69,6.01793435]
[1761918718176,5.41110649,187.73,187.69,19.33777024]
[1761918718356,20.592,187.74,187.69,5.32793435]
[1761918718680,21.092,187.76,187.69,5.32793435]
[1761918718681,5.41110649,187.73,187.69,5.32793435]
[1761918718870,0.5,187.76,187.69,5.32793435]
[1761918719071,5.41110649,187.73,187.69,5.32793435]
[1761918719277,5.41110649,187.74,187.7,0.28432314]
[1761918719661,5.41110649,187.73,187.69,5.32793435]
[1761918719869,5.41110649,187.73,187.62,47.92]
[1761918719870,5.41110649,187.7,187.62,47.92]
[1761918720063,5.41110649,187.68,187.64,0.28432314]
[1761918720367,0.5,187.74,187.66,0.14216157]
[1761918720574,0.5,187.77,187.68,0.14216157]
[1761918720761,0.5,187.77,187.69,0.14216157]
[1761918720960,5.41110649,187.74,187.69,0.14216157]
[1761918721279,5.41110649,187.73,187.69,0.14216157]
[1761918721467,5.41110649,187.74,187.69,0.14216157]
[1761918721662,5.41110649,187.75,187.71,5.32736668]
[1761918722457,5.41110649,187.74,187.71,5.32736668]
[1761918722655,5.3259795,187.76,187.7,0.14216157]
[1761918722656,5.41110649,187.73,187.7,0.14216157]
[1761918722874,5.41110649,187.71,187.64,5.32935408]
[1761918723078,5.41110649,187.67,187.64,5.32935408]
[1761918723464,21.092,187.72,187.65,1.00432314]
[1761918723465,5.41110649,187.69,187.65,1.00432314]
[1761918723781,5.41110649,187.69,187.66,5.3287861]
[1761918723960,5.41110649,187.67,187.64,5.32909124]
[1761918724375,5.41110649,187.67,187.64,6.04909124]
[1761918724777,5.41110649,187.67,187.64,5.32909124]
[1761918724984,5.41110649,187.65,187.62,0.2]
[1761918725200,5.41110649,187.63,187.62,0.2]
[1761918725360,0.5,187.64,187.62,0.2]
[1761918725560,5.41110649,187.63,187.62,0.2]
[1761918725756,10.7407446,187.63,187.62,0.2]
[1761918725959,11.2407446,187.63,187.62,0.2]
[1761918726176,5.41110649,187.63,187.62,0.2]
[1761918726391,0.5,187.71,187.62,6.24992218]
[1761918726684,5.41110649,187.64,187.62,0.2]
[1761918726986,5.41110649,187.63,187.62,0.2]
[1761918727663,5.91110649,187.63,187.62,0.2]
[1761918727871,5.41110649,187.63,187.62,0.2]
[1761918728073,0.5,187.68,187.62,0.2]
[1761918728277,5.41110649,187.64,187.62,5.52981149]
[1761918729284,8.24804413,187.64,187.62,5.52981149]
[1761918729984,20.592,187.67,187.62,5.52974754]
[1761918730189,8.24804413,187.67,187.63,0.28432314]
[1761918730399,8.24804413,187.66,187.63,0.28432314]
[1761918730868,21.092,187.69,187.64,0.72]
[1761918730869,8.24804413,187.69,187.64,0.72]
[1761918731270,5.32680612,187.73,187.64,0.72]
[1761918731271,8.24804413,187.68,187.64,0.72]
[1761918732495,8.24804413,187.68,187.65,5.32907007]
[1761918733085,8.24804413,187.66,187.63,5.6136895]
[1761918733394,8.24804413,187.65,187.63,5.32936636]
[1761918734098,8.24804413,187.68,187.64,1.00432314]
[1761918734304,20.592,187.72,187.64,9.25236727]
[1761918734476,8.24804413,187.7,187.65,5.32907007]
[1761918735078,20.592,187.72,187.66,9.25236727]
[1761918735280,15.75375883,187.78,187.68,8.24804413]
[1761918735610,15.75375883,187.78,187.68,0.28432314]
[1761918735611,8.24804413,187.73,187.68,0.28432314]
[1761918735910,8.24804413,187.74,187.69,0.72]
[1761918736421,8.24804413,187.74,187.7,5.3276505]
[1761918736610,13.31183709,187.81,187.64,9.78882769]
[1761918736611,0.5,187.73,187.64,9.78882769]
[1761918736771,0.5,187.73,187.6,0.53304904]
[1761918736772,20.592,187.73,187.65,27.90345308]
[1761918736976,8.24804413,187.72,187.67,0.28432314]
[1761918737204,20.592,187.73,187.67,0.28432314]
[1761918737409,8.24804413,187.74,187.69,0.28432314]
[1761918737774,8.24804413,187.74,187.69,1.00432314]
[1761918738304,8.24804413,187.74,187.7,0.72]
[1761918738476,24.75293406,187.85,187.7,5.3276505]
[1761918738477,8.24804413,187.73,187.7,5.3276505]
[1761918738802,8.24804413,187.74,187.7,5.3276505]
[1761918739179,8.24804413,187.74,187.7,6.0476505]
[1761918739377,8.24804413,187.74,187.7,19.36677676]
[1761918739599,8.24804413,187.74,187.7,6.0476505]
[1761918739789,8.24804413,187.74,187.71,0.72]
[1761918740104,26.41768855,187.77,187.71,0.72]
[1761918740337,8.24804413,187.75,187.71,0.72]
[1761918740541,164.3,187.86,187.73,8.53236727]
[1761918740825,12.21647723,187.85,187.79,8.24804413]
[1761918741008,3.9684331,187.84,187.79,8.24804413]
[1761918741208,8.24804413,187.85,187.8,0.28432314]
[1761918741396,8.24804413,187.86,187.8,8.96804413]
[1761918741599,8.24804413,187.87,187.81,8.24804413]
[1761918741796,3.96690243,187.86,187.82,0.28432314]
[1761918742111,8.24804413,187.88,187.82,9.25236727]
[1761918742322,8.24804413,187.86,187.82,0.28432314]
[1761918742522,8.24804413,187.86,187.83,5.32396315]
[1761918742827,8.24804413,187.85,187.81,5.32447284]
[1761918743026,0.5,187.88,187.81,5.32447284]
[1761918743196,8.24804413,187.86,187.81,5.32447284]
[1761918743530,4.465847,187.88,187.81,5.32447284]
[1761918743531,8.24804413,187.85,187.81,5.32447284]
[1761918743743,0.1,187.91,187.82,1.00432314]
[1761918743919,8.24804413,187.88,187.84,0.28432314]
[1761918744232,8.24804413,187.89,187.84,0.28432314]
[1761918744399,8.34804413,187.91,187.86,8.24804413]
[1761918744601,28.94004413,187.91,187.87,5.32282961]
[1761918744804,0.1,187.91,187.87,27.59794778]
[1761918745000,8.34804413,187.91,187.87,5.32282961]
[1761918745215,8.24804413,187.9,187.87,6.04282961]
[1761918745419,8.34804413,187.91,187.87,6.04282961]
[1761918745730,0.1,187.91,187.88,0.72]
[1761918745931,0.1,187.91,187.87,18.62990365]
[1761918746101,8.34804413,187.91,187.85,14.29120297]
[1761918746306,8.34804413,187.91,187.86,0.28432314]
[1761918746605,8.24804413,187.89,187.85,0.72]
[1761918746797,8.24804413,187.86,187.81,21.5591886]
[1761918746997,8.24804413,187.88,187.82,27.60270688]
[1761918747411,8.24804413,187.89,187.84,0.28432314]
[1761918747928,8.24804413,187.87,187.84,1.00432314]
[1761918748227,0.6,187.91,187.83,0.14216157]
[1761918748405,8.24804413,187.89,187.83,9.1102057]
[1761918748607,8.24804413,187.89,187.85,5.46530054]
[1761918748921,8.24804413,187.88,187.84,5.32366115]
[1761918749130,8.24804413,187.85,187.78,0.7]
[1761918749323,26.41406647,187.9,187.79,18.03687182]
[1761918749324,8.24804413,187.84,187.79,18.03687182]
[1761918749497,8.24804413,187.85,187.79,9.78882769]
[1761918749697,8.24804413,187.86,187.81,0.14216157]
[1761918749916,8.24804413,187.86,187.82,0.14216157]
[1761918750108,8.24804413,187.87,187.82,0.84216157]
[1761918750619,28.84004413,187.86,187.83,0.14216157]
[1761918751016,28.84004413,187.86,187.83,0.84216157]
[1761918751507,8.24804413,187.84,187.8,0.84216157]
[1761918751709,8.24804413,187.83,187.8,0.98432314]
[1761918751908,8.24804413,187.85,187.81,5.32444313]
[1761918752212,8.24804413,187.84,187.81,5.32444313]
[1761918752406,8.24804413,187.86,187.82,0.7]
[1761918752607,0.1,187.91,187.82,0.7]
[1761918752608,0.1,187.91,187.86,5.32311295]
[1761918752809,8.34804413,187.91,187.87,0.28432314]
[1761918753022,0.1,187.91,187.87,0.98432314]
[1761918753328,0.1,187.91,187.88,0.7]
[1761918753803,8.34804413,187.91,187.87,0.28432314]
[1761918754210,8.24804413,187.89,187.86,0.28432314]
[1761918755212,8.24804413,187.87,187.84,6.02358965]
[1761918755630,5.32198248,187.9,187.84,6.02358965]
[1761918755631,8.24804413,187.88,187.84,6.02358965]
[1761918755933,8.24804413,187.86,187.82,5.32404854]
[1761918756141,8.24804413,187.85,187.81,0.7]
[1761918756438,8.24804413,187.86,187.82,0.7]
[1761918756634,8.24804413,187.85,187.82,0.7]
[1761918756840,8.24804413,187.85,187.79,8.24804413]
[1761918757019,8.24804413,187.82,187.77,0.7]
[1761918757341,8.24804413,187.81,187.77,0.7]
[1761918757538,0.5,187.84,187.75,0.7]
[1761918757539,21.092,187.84,187.75,0.7]
[1761918757715,18.63200077,187.85,187.72,15.11591057]
[1761918757716,8.24804413,187.77,187.72,15.11591057]
[1761918757913,8.24804413,187.77,187.73,0.98432314]
[1761918758138,20.592,187.82,187.74,9.78882769]
[1761918758355,8.24804413,187.81,187.75,8.24804413]
[1761918758507,9.78882769,187.88,187.75,8.24804413]
[1761918758508,28.84004413,187.83,187.78,0.28432314]
[1761918758714,20.592,187.82,187.78,14.55772592]
[1761918758948,28.84004413,187.82,187.78,6.30968179]
[1761918759139,20.592,187.82,187.79,0.7]
[1761918759437,20.592,187.83,187.79,0.7]
[1761918759751,8.24804413,187.82,187.78,5.32535865]
[1761918759928,8.24804413,187.81,187.77,0.14216157]
[1761918760122,8.24804413,187.82,187.77,8.94804413]
[1761918760433,20.592,187.86,187.78,0.14216157]
[1761918760636,20.592,187.86,187.81,0.28432314]
[1761918760847,8.34804413,187.91,187.85,8.24804413]
[1761918761031,8.34804413,187.91,187.85,0.14216157]
[1761918761032,0.1,187.91,187.85,0.14216157]
[1761918761233,0.1,187.91,187.83,8.24804413]
[1761918761234,8.24804413,187.86,187.83,0.28432314]
[1761918761428,8.24804413,187.87,187.83,0.28432314]
[1761918761622,8.24804413,187.88,187.83,0.98432314]
[1761918762217,8.24804413,187.88,187.84,0.7]
[1761918762637,8.24804413,187.88,187.83,0.28432314]
[1761918762835,8.24804413,187.87,187.83,6.30807883]
[1761918763259,8.24804413,187.85,187.8,0.7]
[1761918763426,8.24804413,187.84,187.79,0.14216157]
[1761918763630,8.24804413,187.84,187.79,5.46725875]
[1761918763844,8.24804413,187.84,187.8,0.14216157]
[1761918764138,0.5,187.87,187.79,5.32509718]
[1761918764139,20.592,187.85,187.79,5.32509718]
[1761918764345,8.24804413,187.82,187.79,5.32509718]
[1761918764646,8.24804413,187.84,187.79,5.32509718]
[1761918764944,8.24804413,187.83,187.79,5.32509718]
[1761918765123,20.592,187.85,187.77,5.32558599]
[1761918765124,8.24804413,187.81,187.77,5.32558599]
[1761918765323,8.24804413,187.82,187.77,6.02558599]
[1761918765518,8.24804413,187.81,187.77,6.02558599]
[1761918765719,8.24804413,187.81,187.78,0.28432314]
[1761918765948,8.24804413,187.81,187.78,0.98432314]
[1761918766144,8.24804413,187.82,187.78,0.28432314]
[1761918766339,8.24804413,187.83,187.79,0.7]
[1761918766542,13.30546166,187.9,187.8,18.32119496]
[1761918766543,8.24804413,187.86,187.8,18.32119496]
[1761918766851,8.24804413,187.86,187.81,0.7]
[1761918767233,8.24804413,187.86,187.82,0.28432314]
[1761918767420,8.24804413,187.86,187.82,0.98432314]
[1761918767751,8.24804413,187.86,187.82,0.28432314]
[1761918768042,8.24804413,187.85,187.82,0.28432314]
[1761918768352,8.24804413,187.85,187.81,6.02441653]
[1761918768647,8.24804413,187.86,187.82,0.98432314]
[1761918769846,8.24804413,187.86,187.82,6.30855444]
[1761918771126,8.24804413,187.85,187.81,5.60878511]
[1761918771331,8.24804413,187.86,187.81,5.60878511]
[1761918771534,8.24804413,187.88,187.83,10.07315083]
[1761918771738,8.24804413,187.9,187.83,18.32119496]
[1761918771949,8.24804413,187.9,187.84,0.7]
[1761918772257,20.692,187.91,187.84,0.7]
[1761918772432,8.24804413,187.89,187.84,0.7]
[1761918772744,8.24804413,187.88,187.84,6.0234586]
[1761918773237,8.24804413,187.87,187.84,5.3234586]
[1761918773635,8.24804413,187.85,187.83,5.32393257]
[1761918773935,8.24804413,187.85,187.82,5.32420547]
[1761918774142,8.24804413,187.85,187.82,5.60852861]
[1761918774341,8.24804413,187.83,187.8,5.32454571]
[1761918774519,20.592,187.88,187.8,5.32454571]
[1761918774520,8.24804413,187.84,187.8,5.32454571]
[1761918774940,8.24804413,187.83,187.8,6.02454571]
[1761918775145,8.24804413,187.83,187.8,5.32454571]
[1761918775354,8.24804413,187.81,187.76,56.60943642]
[1761918775542,8.24804413,187.8,187.76,9.60943642]
[1761918775746,20.592,187.84,187.76,9.60943642]
[1761918775747,8.24804413,187.77,187.76,9.60943642]
[1761918776426,8.24804413,187.79,187.76,9.60943642]
[1761918777050,8.24804413,187.78,187.76,9.60943642]
[1761918777364,8.24804413,187.77,187.76,9.60943642]
[1761918778156,8.74804413,187.77,187.76,9.60943642]
[1761918778455,8.24804413,187.77,187.76,9.60943642]
[1761918779256,33.90261654,187.82,187.76,10.28943642]
[1761918779257,25.91625309,187.82,187.76,10.28943642]
[1761918779434,8.24804413,187.79,187.76,10.28943642]
[1761918779633,0.5,187.83,187.76,15.61536434]
[1761918779834,8.24804413,187.82,187.77,0.96432314]
[1761918780031,8.24804413,187.83,187.77,9.21236727]
[1761918780224,8.24804413,187.84,187.79,0.28432314]
[1761918780450,28.84004413,187.85,187.79,8.53236727]
[1761918780747,3.96807163,187.84,187.8,0.68]
[1761918780954,3.96807163,187.84,187.81,5.32453011]
[1761918781256,8.24804413,187.87,187.82,0.28432314]
[1761918781431,12.21762246,187.86,187.82,0.28432314]
[1761918781633,0.5,187.9,187.82,0.96432314]
[1761918781845,8.24804413,187.88,187.82,0.96432314]
[1761918782051,8.24804413,187.86,187.82,0.28432314]
[1761918782534,21.092,187.89,187.81,5.32453011]
[1761918782535,8.24804413,187.84,187.81,5.32453011]
[1761918782929,8.24804413,187.82,187.78,0.68]
[1761918783129,8.24804413,187.82,187.78,6.00527217]
[1761918783536,8.24804413,187.82,187.79,0.68]
[1761918783849,8.24804413,187.83,187.79,0.68]
[1761918784227,8.24804413,187.82,187.78,5.32527217]
[1761918784432,8.24804413,187.8,187.78,5.32527217]
[1761918784840,8.24804413,187.81,187.78,5.32527217]
[1761918785060,8.24804413,187.82,187.78,0.68]
[1761918785930,8.24804413,187.83,187.78,0.68]
[1761918786132,3.97915674,187.82,187.79,5.32509718]
[1761918786527,5.82197977,187.9,187.8,0.68]
[1761918786747,12.22647501,187.89,187.83,8.24804413]
[1761918786947,3.97843088,187.88,187.85,0.28432314]
[1761918787149,3.97843088,187.87,187.85,0.28432314]
[1761918787471,8.24804413,187.88,187.84,0.68]
[1761918787670,3.97798317,187.87,187.84,0.68]
[1761918787875,8.24804413,187.89,187.84,0.68]
[1761918788155,3.9776442,187.88,187.85,5.32339632]
[1761918788358,8.24804413,187.9,187.85,5.32339632]
[1761918788569,3.977384,187.89,187.85,5.32339632]
[1761918788737,3.977384,187.89,187.85,0.68]
[1761918788937,3.977384,187.88,187.84,5.32367715]
[1761918789142,3.977384,187.87,187.83,0.28432314]
[1761918789349,3.977384,187.87,187.75,0.68]
[1761918789350,5.41750487,187.84,187.75,0.68]
[1761918789551,5.41750487,187.79,187.73,0.68]
[1761918789738,20.592,187.84,187.73,0.68]
[1761918789739,5.41750487,187.8,187.77,0.68]
[1761918789949,5.41750487,187.82,187.77,0.68]
[1761918790154,5.41750487,187.82,187.77,6.00541507]
[1761918790758,25.91593401,187.84,187.77,6.00541507]
[1761918790759,9.39701694,187.81,187.77,6.28998648]
[1761918791060,5.41750487,187.81,187.77,5.46782491]
[1761918791243,5.41750487,187.84,187.78,0.68]
[1761918791561,3.97959578,187.83,187.79,0.28432314]
[1761918791758,5.41750487,187.84,187.79,0.28432314]
[1761918792057,0.5,187.87,187.79,0.28432314]
[1761918792058,5.41750487,187.89,187.83,0.28432314]
[1761918792366,3.97902904,187.88,187.84,10.74118459]
[1761918792543,3.97902904,187.87,187.84,24.0503839]
[1761918792747,5.41750487,187.9,187.84,5.32367972]
[1761918792946,9.39643277,187.89,187.83,0.96432314]
[1761918793150,3.9789279,187.88,187.8,5.41750487]
[1761918793360,3.9789279,187.87,187.83,5.70182801]
[1761918793538,0.1,187.91,187.85,0.28432314]
[1761918793539,20.692,187.91,187.85,0.28432314]
[1761918793736,9.39584842,187.9,187.85,0.28432314]
[1761918793941,3.97834355,187.89,187.85,0.28432314]
[1761918794145,3.97834355,187.89,187.85,6.28760974]
[1761918794361,5.41750487,187.86,187.77,21.272]
[1761918794535,5.41750487,187.82,187.77,0.68]
[1761918794735,5.41750487,187.81,187.77,0.68]
[1761918794941,5.41750487,187.82,187.77,0.68]
[1761918795157,5.41750487,187.83,187.77,24.73728608]
[1761918795461,5.41750487,187.84,187.78,9.93098926]
[1761918795663,20.592,187.86,187.8,0.28432314]
[1761918795844,26.00950487,187.86,187.8,0.28432314]
[1761918796044,5.41750487,187.86,187.81,0.68]
[1761918796242,5.41750487,187.87,187.83,0.28432314]
[1761918796485,0.1,187.91,187.86,5.70182801]
[1761918796643,0.1,187.91,187.89,5.41750487]
[1761918796843,0.1,187.91,187.88,0.28432314]
[1761918797350,0.1,187.91,187.89,0.68]
[1761918797554,0.1,187.91,187.89,0.572907]
[1761918798745,5.41750487,187.9,187.85,0.28432314]
[1761918799063,5.41750487,187.9,187.85,5.6076955]
[1761918799252,0.1,187.91,187.85,5.70182801]
[1761918799579,0.1,187.91,187.88,0.28432314]
[1761918800078,0.1,187.91,187.89,0.68]
[1761918800584,0.1,187.91,187.88,0.28432314]
[1761918800880,5.41750487,187.9,187.85,5.60771946]
[1761918801084,5.51750487,187.91,187.86,0.68]
[1761918801288,5.41750487,187.9,187.86,0.68]
[1761918801786,5.41750487,187.9,187.85,5.60771946]
[1761918801987,5.41750487,187.9,187.86,0.68]
[1761918802167,5.51750487,187.91,187.86,0.68]
[1761918802486,0.1,187.91,187.87,0.28432314]
[1761918802789,0.1,187.91,187.88,5.3225463]
[1761918802986,0.1,187.91,187.88,6.0025463]
[1761918803186,0.1,187.91,187.89,0.68]
[1761918804364,0.1,187.91,187.9,5.70182801]
[1761918804693,0.1,187.91,187.9,5.60630291]
[1761918804877,0.1,187.91,187.9,6.32630291]
[1761918805482,0.1,187.91,187.9,16.1151306]
[1761918805687,0.1,187.91,187.9,21.53263547]